bitfinex/quotes_BTCUSD_20250410
["timestamp","ask_amount","ask_price","bid_price","bid_amount"]
[1744297077808,0.012302,81285.0,81282.0,0.246056]
[1744297078056,0.246048,81285.0,81281.0,0.246059]
[1744297078310,0.246048,81285.0,81282.0,0.246056]
[1744297078515,0.246048,81285.0,81281.0,0.246059]
[1744297078892,0.246047,81286.0,81282.0,0.246056]
[1744297079131,0.12055382,81295.0,81290.0,0.012301]
[1744297079337,0.12055382,81295.0,81288.0,0.012301]
[1744297079485,0.246015,81296.0,81290.0,0.258331]
[1744297079693,0.426582,81294.0,81290.0,0.246032]
[1744297079896,0.246024,81293.0,81289.0,0.246035]
[1744297080092,0.18044,81293.0,81289.0,0.246035]
[1744297080298,0.246033,81290.0,81286.0,0.246042]
[1744297080511,0.246032,81291.0,81288.0,0.246037]
[1744297080742,0.012301,81292.0,81286.0,0.246044]
[1744297080743,0.246027,81292.0,81286.0,0.246044]
[1744297080913,0.246027,81292.0,81288.0,0.246036]
[1744297081236,0.246027,81292.0,81289.0,0.246035]
[1744297081573,0.18044,81293.0,81290.0,0.246032]
[1744297082207,0.18044,81293.0,81291.0,0.246029]
[1744297082406,0.18044,81293.0,81292.0,0.246026]
[1744297082606,0.18044,81293.0,81291.0,0.246029]
[1744297082811,0.426464,81293.0,81291.0,0.246029]
[1744297083027,0.426464,81293.0,81290.0,0.258333]
[1744297083541,0.426464,81293.0,81290.0,0.246032]
[1744297084372,0.18044,81293.0,81291.0,0.246029]
[1744297084549,0.18044,81293.0,81289.0,0.012301]
[1744297084762,0.426464,81293.0,81290.0,0.246032]
[1744297085173,0.426464,81293.0,81266.0,0.2462717]
[1744297085174,0.246059,81281.0,81266.0,0.2462717]
[1744297085372,0.258349,81286.0,81281.0,0.246058]
[1744297085575,0.258355,81283.0,81278.0,0.246068]
[1744297085781,0.246057,81282.0,81279.0,0.246063]
[1744297086165,0.37891482,81281.0,81274.0,0.246079]
[1744297086365,0.37891482,81281.0,81275.0,0.246077]
[1744297087684,0.37891482,81281.0,81276.0,0.246073]
[1744297087885,0.012301,81289.0,81280.0,0.0123034]
[1744297088088,0.258361,81281.0,81280.0,4e-07]
[1744297088494,0.12055382,81288.0,81284.0,0.012302]
[1744297088696,0.18044,81287.0,81285.0,0.246045]
[1744297088855,0.18044,81287.0,81286.0,0.258346]
[1744297089059,0.18044,81287.0,81285.0,0.246045]
[1744297089519,0.426484,81287.0,81280.0,4e-07]
[1744297089725,0.012302,81286.0,81280.0,0.0123034]
[1744297089936,0.258361,81281.0,81280.0,4e-07]
[1744297090975,0.37891482,81281.0,81280.0,4e-07]
[1744297091710,0.55935482,81281.0,81280.0,4e-07]
[1744297094390,0.57086528,81281.0,81280.0,4e-07]
[1744297095209,1.09123872,81281.0,81280.0,4e-07]
[1744297095414,1.50563872,81281.0,81280.0,4e-07]
[1744297095891,1.90563872,81281.0,81280.0,4e-07]
[1744297096466,1.90563872,81281.0,81277.0,0.0001291]
[1744297096467,0.598372,81278.0,81277.0,0.0001291]
[1744297096671,0.73346667,81278.0,81277.0,0.0001291]
[1744297097287,1.14497713,81278.0,81277.0,0.0001291]
[1744297100928,1.32545713,81278.0,81277.0,0.0001291]
[1744297102155,1.31394667,81278.0,81277.0,0.0001291]
[1744297104263,1.32543393,81278.0,81277.0,0.0001291]
[1744297106313,1.31394667,81278.0,81277.0,0.0001291]
[1744297107180,1.41218963,81278.0,81277.0,0.0001291]
[1744297107701,1.82658963,81278.0,81277.0,0.0001291]
[1744297108861,1.72834667,81278.0,81277.0,0.0001291]
[1744297114013,1.77694667,81278.0,81277.0,1e-07]
[1744297115179,0.012306,81260.0,81259.0,0.0001688]
[1744297115354,2.59532367,81260.0,81259.0,1e-07]
[1744297115582,2.59532367,81260.0,81258.0,7.3e-07]
[1744297115583,0.70507285,81259.0,81258.0,7.3e-07]
[1744297115732,1.27562667,81259.0,81258.0,7.3e-07]
[1744297116739,1.28817561,81259.0,81258.0,7.3e-07]
[1744297117334,1.29761171,81259.0,81258.0,7.3e-07]
[1744297117559,0.598466,81248.0,81236.0,0.12722475]
[1744297117892,0.89359907,81248.0,81224.0,0.12722475]
[1744297118621,1.13356067,81248.0,81228.0,0.012311]
[1744297118786,1.13356067,81248.0,81230.0,0.258518]
[1744297118981,1.31392067,81248.0,81228.0,0.012311]
[1744297119167,1.31392067,81248.0,81228.0,0.246219]
[1744297119367,1.31392067,81248.0,81227.0,0.24622]
[1744297119368,1.72832067,81248.0,81227.0,0.258531]
[1744297119774,1.72832067,81248.0,81226.0,0.012311]
[1744297120083,1.72832067,81248.0,81227.0,0.012311]
[1744297120507,1.72832067,81248.0,81227.0,0.258533]
[1744297120705,1.72832067,81248.0,81229.0,0.246214]
[1744297120907,1.72832067,81248.0,81228.0,0.246219]
[1744297121111,1.72832067,81248.0,81226.0,0.246225]
[1744297121337,1.72832067,81248.0,81227.0,0.246223]
[1744297121544,1.72832067,81248.0,81225.0,0.258539]
[1744297122053,1.72832067,81248.0,81229.0,0.246215]
[1744297122217,1.72832067,81248.0,81228.0,0.012311]
[1744297122218,1.72832067,81248.0,81228.0,0.258531]
[1744297122631,1.72832067,81248.0,81229.0,0.246216]
[1744297122830,1.72832067,81248.0,81228.0,0.258531]
[1744297123025,1.72832067,81248.0,81228.0,0.24622]
[1744297123481,1.54796067,81248.0,81228.0,0.24622]
[1744297123701,1.72836067,81248.0,81226.0,0.012311]
[1744297123832,1.72836067,81248.0,81227.0,0.246223]
[1744297124237,1.72836067,81248.0,81226.0,0.060011]
[1744297124438,1.72836067,81248.0,81226.0,0.306236]
[1744297124638,1.72836067,81248.0,81227.0,0.246223]
[1744297125097,1.72836067,81248.0,81226.0,0.306236]
[1744297126169,1.72836067,81248.0,81227.0,0.246222]
[1744297126369,1.72836067,81248.0,81226.0,0.306237]
[1744297126777,1.72836067,81248.0,81226.0,0.293926]
[1744297126978,1.72836067,81248.0,81226.0,0.0477]
[1744297128693,1.72836067,81248.0,81222.0,0.258549]
[1744297128899,1.72836067,81248.0,81223.0,0.246233]
[1744297129451,1.72836067,81248.0,81219.0,0.0464]
[1744297129824,1.73983167,81248.0,81219.0,0.0464]
[1744297132619,1.73983167,81248.0,81219.0,0.292646]
[1744297132959,1.73983167,81248.0,81219.0,0.0464]
[1744297133087,1.73983167,81248.0,81219.0,0.292647]
[1744297133837,1.73983167,81248.0,81219.0,0.0464]
[1744297134068,1.73983167,81248.0,81219.0,0.292645]
[1744297134360,1.73983167,81248.0,81220.0,0.246243]
[1744297134708,1.73983167,81248.0,81219.0,0.292647]
[1744297134912,1.73983167,81248.0,81219.0,0.0464]
[1744297135310,1.73983167,81248.0,81219.0,0.292646]
[1744297135534,1.73983167,81248.0,81219.0,0.246246]
[1744297135811,0.598476,81245.0,81219.0,0.246246]
[1744297136185,0.73357067,81245.0,81219.0,0.246246]
[1744297136311,0.73357067,81245.0,81218.0,0.012312]
[1744297136532,0.73357067,81245.0,81220.0,0.246242]
[1744297136723,1.14504167,81245.0,81220.0,0.012312]
[1744297136934,1.14504167,81245.0,81219.0,0.012312]
[1744297137132,1.14504167,81245.0,81219.0,0.258559]
[1744297137314,1.32544167,81245.0,81220.0,0.246244]
[1744297137547,1.32544167,81245.0,81219.0,0.258559]
[1744297138458,1.32544167,81245.0,81219.0,0.012312]
[1744297138660,1.32544167,81245.0,81219.0,0.258559]
[1744297139505,1.32544167,81245.0,81221.0,0.24624]
[1744297139703,1.32544167,81245.0,81221.0,0.246239]
[1744297139924,1.32544167,81245.0,81220.0,0.012312]
[1744297140108,1.73984167,81245.0,81219.0,0.258554]
[1744297140309,1.73984167,81245.0,81221.0,0.246239]
[1744297140659,1.73984167,81245.0,81220.0,0.246244]
[1744297140787,1.73984167,81245.0,81218.0,0.258562]
[1744297141215,1.73984167,81245.0,81216.0,0.246255]
[1744297141418,1.73984167,81245.0,81215.0,0.293159]
[1744297141634,1.73984167,81245.0,81216.0,0.246255]
[1744297142065,1.73984167,81245.0,81217.0,0.246253]
[1744297142548,1.73984167,81245.0,81216.0,0.246256]
[1744297143406,1.73984167,81245.0,81215.0,0.305471]
[1744297143640,1.73984167,81245.0,81215.0,0.0469]
[1744297144108,0.258483,81243.0,81215.0,0.0469]
[1744297144320,1.14797767,81243.0,81215.0,0.0469]
[1744297144759,1.54797767,81243.0,81215.0,0.0469]
[1744297145230,1.55944867,81243.0,81215.0,0.0469]
[1744297146361,1.55944867,81243.0,81215.0,0.293159]
[1744297146585,1.55944867,81243.0,81215.0,0.0469]
[1744297146872,1.58251303,81243.0,81215.0,0.0469]
[1744297147091,1.64551049,81243.0,81215.0,0.0469]
[1744297148356,0.258518,81232.0,81215.0,0.0469]
[1744297148591,0.258568,81216.0,81215.0,0.0469]
[1744297148847,0.438768,81216.0,81215.0,0.0469]
[1744297149096,0.28163236,81216.0,81215.0,0.0469]
[1744297149336,0.29310336,81216.0,81215.0,0.0469]
[1744297149786,0.29323011,81216.0,81215.0,0.0469]
[1744297150035,0.03466211,81216.0,81215.0,0.059212]
[1744297150230,0.03466211,81216.0,81215.0,0.0469]
[1744297151036,0.04697411,81216.0,81215.0,0.0469]
[1744297151780,0.02390975,81216.0,81215.0,0.0469]
[1744297152432,0.04696215,81216.0,81215.0,0.0469]
[1744297153809,0.02390975,81216.0,81215.0,0.0469]
[1744297156759,0.01159775,81216.0,81215.0,0.0469]
[1744297160664,0.01159775,81216.0,81215.0,0.293159]
[1744297160867,0.01159775,81216.0,81215.0,0.0469]
[1744297161532,0.25785375,81216.0,81215.0,0.0469]
[1744297162181,0.01159775,81216.0,81215.0,0.0469]
[1744297162780,0.01159775,81216.0,81215.0,0.305471]
[1744297162907,0.01159775,81216.0,81215.0,0.293159]
[1744297163343,0.01159775,81216.0,81215.0,0.0469]
[1744297163559,0.25785375,81216.0,81215.0,0.0469]
[1744297164000,0.01159775,81216.0,81215.0,0.0469]
[1744297164440,0.03466024,81216.0,81215.0,0.0469]
[1744297164678,0.258571,81215.0,81214.0,0.0001684]
[1744297164922,0.598582,81212.0,81211.0,9e-07]
[1744297165151,0.598582,81212.0,81188.0,0.163534]
[1744297165152,0.598613,81202.0,81188.0,0.163534]
[1744297165372,1.33697016,81202.0,81188.0,0.163534]
[1744297165852,1.32242931,81202.0,81188.0,0.163534]
[1744297166311,1.34844116,81202.0,81188.0,0.163534]
[1744297166532,1.33390031,81202.0,81190.0,0.012316]
[1744297166752,1.33390031,81202.0,81188.0,0.175851]
[1744297167000,1.33390031,81202.0,81188.0,0.163534]
[1744297168623,1.34844116,81202.0,81188.0,0.163534]
[1744297169044,1.33390031,81202.0,81188.0,0.163534]
[1744297169545,1.33394031,81202.0,81188.0,0.163534]
[1744297170206,0.73532731,81202.0,81199.0,0.246307]
[1744297170407,0.21477349,81202.0,81199.0,0.0477]
[1744297170583,0.011471,81202.0,81201.0,0.016315]
[1744297171934,0.012314,81208.0,81203.0,0.246294]
[1744297172183,0.16630059,81210.0,81209.0,0.258591]
[1744297172387,0.246299,81202.0,81201.0,0.004]
[1744297172586,0.258613,81202.0,81201.0,0.004]
[1744297172748,0.270084,81202.0,81201.0,0.004]
[1744297174093,0.450084,81202.0,81201.0,0.004]
[1744297174869,0.270084,81202.0,81201.0,0.004]
[1744297175239,0.450084,81202.0,81201.0,0.004]
[1744297177269,0.438613,81202.0,81201.0,0.004]
[1744297179930,0.258613,81202.0,81201.0,0.004]
[1744297180662,0.246296,81203.0,81201.0,0.004]
[1744297180868,0.01150508,81202.0,81201.0,0.262617]
[1744297181388,0.24629,81205.0,81201.0,0.004]
[1744297181586,0.192314,81207.0,81201.0,0.004]
[1744297181807,0.246299,81202.0,81201.0,0.004]
[1744297182014,0.258607,81204.0,81201.0,0.004]
[1744297182437,0.01150571,81203.0,81201.0,0.004]
[1744297182639,0.25780371,81203.0,81201.0,0.004]
[1744297183633,0.01150571,81202.0,81201.0,0.004]
[1744297183838,0.25780471,81202.0,81201.0,0.004]
[1744297184265,0.01150571,81202.0,81201.0,0.004]
[1744297184731,0.25780471,81202.0,81201.0,0.004]
[1744297185499,0.01150571,81202.0,81201.0,0.004]
[1744297185836,0.01150571,81202.0,81201.0,0.250302]
[1744297186714,0.01150571,81202.0,81201.0,0.004]
[1744297186850,0.01150571,81202.0,81201.0,0.250302]
[1744297187051,0.01150571,81202.0,81201.0,0.004]
[1744297187280,0.01150571,81202.0,81201.0,0.250302]
[1744297187735,0.01150571,81202.0,81201.0,0.262617]
[1744297187969,0.01150571,81202.0,81201.0,0.250302]
[1744297188178,0.01150571,81202.0,81201.0,0.262617]
[1744297188647,0.246287,81206.0,81202.0,0.012314]
[1744297189333,0.24629,81205.0,81203.0,0.246295]
[1744297189532,0.24629,81205.0,81202.0,0.258612]
[1744297189782,0.438604,81207.0,81203.0,0.246295]
[1744297190633,0.246288,81206.0,81203.0,0.246295]
[1744297191633,0.246287,81206.0,81203.0,0.246295]
[1744297191958,0.246289,81207.0,81205.0,0.24629]
[1744297192157,0.246289,81207.0,81204.0,0.246291]
[1744297192158,0.246287,81206.0,81204.0,0.246291]
[1744297192553,0.246289,81207.0,81204.0,0.246291]
[1744297192778,0.246287,81206.0,81203.0,0.258609]
[1744297192995,0.246287,81206.0,81204.0,0.246293]
[1744297193642,0.246287,81206.0,81203.0,0.258609]
[1744297193995,0.246289,81207.0,81203.0,0.258609]
[1744297194396,0.246276,81210.0,81206.0,0.246286]
[1744297194596,0.246278,81209.0,81205.0,0.246287]
[1744297194799,0.246276,81210.0,81205.0,0.246287]
[1744297194800,0.25185888,81230.0,81205.0,0.012314]
[1744297195007,0.05,81241.0,81205.0,0.012314]
[1744297195008,0.246239,81222.0,81215.0,0.258571]
[1744297195180,0.246244,81221.0,81215.0,0.258571]
[1744297195383,0.25855,81222.0,81215.0,0.258571]
[1744297195774,0.17812675,81220.0,81219.0,0.246247]
[1744297196138,0.18964507,81220.0,81219.0,0.24667185]
[1744297196805,0.18964507,81220.0,81219.0,0.25898385]
[1744297198912,0.01151832,81220.0,81219.0,0.25898385]
[1744297199117,0.01151832,81220.0,81219.0,0.30588385]
[1744297199739,0.01151832,81220.0,81219.0,0.42643767]
[1744297199944,0.01151832,81220.0,81219.0,0.76643767]
[1744297200150,0.12884586,81224.0,81223.0,0.258546]
[1744297200355,0.426157,81249.0,81234.0,0.01231]
[1744297200356,0.12884586,81238.0,81234.0,0.01231]
[1744297200554,0.12884586,81238.0,81237.0,0.258502]
[1744297201344,0.12884586,81238.0,81237.0,0.304602]
[1744297201520,0.12884586,81238.0,81237.0,0.42515582]
[1744297201673,0.12884586,81238.0,81237.0,0.304602]
[1744297201860,0.12884586,81238.0,81237.0,0.258502]
[1744297202056,0.012309,81237.0,81225.0,0.012311]
[1744297202322,0.12884586,81238.0,81236.0,0.246195]
[1744297202541,0.01231,81233.0,81214.0,0.01255005]
[1744297202725,0.258553,81222.0,81217.0,0.012312]
[1744297202933,0.246222,81228.0,81223.0,0.246235]
[1744297203157,0.16732873,81232.0,81225.0,0.012311]
[1744297203158,0.03446491,81232.0,81225.0,0.012311]
[1744297203362,0.01231,81231.0,81227.0,0.246223]
[1744297203562,0.0114883,81232.0,81227.0,0.258534]
[1744297203778,0.246213,81231.0,81227.0,0.258534]
[1744297203978,0.246213,81231.0,81227.0,0.246223]
[1744297204179,0.0114883,81230.0,81228.0,0.246218]
[1744297204485,0.0114883,81230.0,81227.0,0.246219]
[1744297204856,0.0114883,81230.0,81226.0,0.246225]
[1744297204857,0.246218,81229.0,81226.0,0.246225]
[1744297205064,0.012311,81228.0,81219.0,0.16395885]
[1744297205411,0.246242,81221.0,81219.0,0.16395885]
[1744297205625,0.012312,81220.0,81219.0,0.16395885]
[1744297205830,0.33560179,81220.0,81219.0,0.16395885]
[1744297206035,0.20273597,81220.0,81219.0,0.16395885]
[1744297206260,0.02297597,81220.0,81219.0,0.16395885]
[1744297206464,0.03446343,81220.0,81219.0,0.17627085]
[1744297206870,0.01148746,81220.0,81219.0,0.17627085]
[1744297207653,0.01148746,81231.0,81227.0,0.012311]
[1744297207862,0.01148746,81231.0,81229.0,0.246217]
[1744297208201,0.01148746,81231.0,81230.0,0.06057199]
[1744297208408,0.12918306,81244.0,81243.0,0.258483]
[1744297208829,0.12918306,81244.0,81243.0,0.37903682]
[1744297209034,0.16630059,81255.0,81254.0,0.258448]
[1744297209237,0.16630059,81255.0,81254.0,0.37900182]
[1744297209454,0.16630059,81255.0,81254.0,0.258448]
[1744297210484,0.16642807,81255.0,81254.0,0.258448]
[1744297210868,0.00012748,81255.0,81254.0,0.258448]
[1744297211074,0.00012748,81255.0,81248.0,0.258462]
[1744297211277,0.012307,81250.0,81245.0,0.246166]
[1744297211437,0.012308,81246.0,81240.0,0.246182]
[1744297211640,0.258478,81245.0,81239.0,0.258495]
[1744297211836,0.012309,81236.0,81224.0,0.012311]
[1744297212085,0.12055382,81244.0,81225.0,0.00246178]
[1744297212425,0.24618,81242.0,81236.0,0.246194]
[1744297212623,0.012308,81245.0,81240.0,0.012309]
[1744297212624,0.00914844,81245.0,81240.0,0.012309]
[1744297212859,0.00012748,81255.0,81251.0,0.24615]
[1744297213058,0.24626748,81255.0,81249.0,0.246155]
[1744297213265,0.246148,81252.0,81248.0,0.246159]
[1744297213450,0.246148,81252.0,81247.0,0.24616]
[1744297213654,0.012307,81253.0,81247.0,0.24616]
[1744297213655,0.258452,81253.0,81247.0,0.012308]
[1744297213880,0.00012748,81255.0,81252.0,0.246146]
[1744297214082,0.00012748,81255.0,81254.0,0.258448]
[1744297214290,0.00012748,81255.0,81252.0,0.246146]
[1744297214468,0.01243348,81255.0,81249.0,0.258463]
[1744297214683,0.00012748,81255.0,81250.0,0.012307]
[1744297215008,0.00012748,81255.0,81251.0,0.246148]
[1744297215214,0.00012748,81255.0,81253.0,0.246144]
[1744297215595,0.00012748,81255.0,81252.0,0.258452]
[1744297215803,0.00012748,81255.0,81253.0,0.246143]
[1744297216126,0.00012748,81255.0,81252.0,0.258452]
[1744297216331,0.246141,81254.0,81250.0,0.246153]
[1744297216532,0.24626648,81255.0,81251.0,0.246148]
[1744297216866,0.00012748,81255.0,81253.0,0.246144]
[1744297217067,0.00012748,81255.0,81254.0,0.012307]
[1744297217774,0.00012748,81255.0,81254.0,0.258448]
[1744297217979,0.00012748,81255.0,81254.0,0.37900182]
[1744297218183,0.00012748,81255.0,81254.0,0.71900182]
[1744297219666,0.00012748,81255.0,81249.0,0.258463]
[1744297219873,0.00012748,81255.0,81253.0,0.246142]
[1744297220505,0.00012748,81255.0,81254.0,0.012307]
[1744297221131,0.00012748,81255.0,81253.0,0.246143]
[1744297221350,0.25857348,81255.0,81245.0,0.012308]
[1744297221769,0.246141,81254.0,81249.0,0.012307]
[1744297222204,0.246147,81252.0,81248.0,0.246158]
[1744297222411,0.00012748,81255.0,81249.0,0.012307]
[1744297222859,0.24626648,81255.0,81251.0,0.012307]
[1744297223036,0.24626648,81255.0,81251.0,0.258456]
[1744297223037,0.00012748,81255.0,81251.0,0.258456]
[1744297223273,0.00012748,81255.0,81254.0,0.258448]
[1744297223502,0.00012748,81255.0,81254.0,0.246141]
[1744297223723,0.00012748,81255.0,81254.0,0.258448]
[1744297224358,0.00012748,81255.0,81252.0,0.012307]
[1744297224592,0.00012748,81255.0,81254.0,0.246141]
[1744297224759,0.00012748,81255.0,81254.0,0.258448]
[1744297226158,0.00012748,81255.0,81254.0,0.37900182]
[1744297228205,0.00012748,81255.0,81254.0,0.71900182]
[1744297228944,0.00016748,81255.0,81254.0,0.71900182]
[1744297229422,0.00016748,81255.0,81254.0,0.37900182]
[1744297229626,0.00016748,81255.0,81250.0,0.258457]
[1744297229627,0.00016748,81255.0,81250.0,0.012307]
[1744297229837,0.00016748,81255.0,81254.0,0.258448]
[1744297230045,0.00016748,81255.0,81252.0,0.246144]
[1744297230227,0.00016748,81255.0,81254.0,0.258448]
[1744297230606,0.00016748,81255.0,81252.0,0.012307]
[1744297230813,0.00016748,81255.0,81254.0,0.246141]
[1744297231134,0.00016748,81255.0,81254.0,0.258448]
[1744297232358,0.00016748,81255.0,81230.0,0.25185888]
[1744297232561,0.012307,81253.0,81246.0,0.246165]
[1744297232770,0.246152,81251.0,81247.0,0.246162]
[1744297232974,0.258455,81252.0,81247.0,0.246162]
[1744297233183,0.00016748,81255.0,81254.0,0.258448]
[1744297233525,0.00016748,81255.0,81254.0,0.37900182]
[1744297234246,0.00016748,81255.0,81254.0,0.258448]
[1744297234651,0.00016748,81255.0,81253.0,0.246144]
[1744297234851,0.00016748,81255.0,81254.0,0.258448]
[1744297236716,0.00016748,81255.0,81251.0,0.24615]
[1744297236919,0.00016748,81255.0,81254.0,0.012307]
[1744297237128,0.00016748,81255.0,81254.0,0.26090923]
[1744297237326,0.00016748,81255.0,81254.0,0.37900182]
[1744297237531,0.00016748,81255.0,81254.0,0.76730182]
[1744297238148,0.00016748,81255.0,81254.0,0.805344]
[1744297238569,0.00016748,81255.0,81254.0,0.76730182]
[1744297238976,0.00016748,81255.0,81254.0,0.80534884]
[1744297239147,0.00016748,81255.0,81254.0,0.76730182]
[1744297239352,0.00016748,81255.0,81254.0,0.80535928]
[1744297239548,4.8e-07,81255.0,81254.0,0.82490013]
[1744297239754,4.8e-07,81255.0,81254.0,1.23870013]
[1744297240025,0.000337,81264.0,81263.0,0.598419]
[1744297240225,1e-06,81264.0,81263.0,0.75703028]
[1744297241051,1e-06,81264.0,81263.0,0.71897282]
[1744297241475,1e-06,81264.0,81263.0,0.75704344]
[1744297242819,0.00021493,81271.0,81270.0,0.598397]
[1744297243026,0.00021493,81271.0,81270.0,0.71895082]
[1744297243874,0.00021493,81271.0,81270.0,0.81760006]
[1744297244075,9.3e-07,81271.0,81270.0,0.81760006]
[1744297244336,9.3e-07,81271.0,81270.0,0.83714091]
[1744297244774,9.3e-07,81271.0,81270.0,0.88714091]
[1744297245004,9.3e-07,81271.0,81270.0,0.76910006]
[1744297245219,9.3e-07,81271.0,81270.0,0.75704539]
[1744297245451,9.3e-07,81275.0,81274.0,0.598385]
[1744297245668,9.3e-07,81275.0,81274.0,0.87574018]
[1744297246349,9.3e-07,81275.0,81274.0,0.87074018]
[1744297246594,9.3e-07,81275.0,81274.0,0.85619933]
[1744297247032,9.3e-07,81275.0,81274.0,0.76833882]
[1744297247484,9.3e-07,81275.0,81274.0,0.80638562]
[1744297247705,0.0003368,81293.0,81292.0,0.598327]
[1744297247979,0.0003368,81293.0,81292.0,0.71888082]
[1744297248202,0.0003368,81293.0,81292.0,0.598327]
[1744297248444,0.0003368,81293.0,81292.0,0.258327]
[1744297249099,0.00046426,81293.0,81292.0,0.258327]
[1744297250712,0.012301,81289.0,81280.0,0.012303]
[1744297250917,0.012301,81289.0,81284.0,0.012302]
[1744297251151,0.246039,81288.0,81284.0,0.258352]
[1744297251642,0.00046426,81293.0,81287.0,0.012302]
[1744297251886,0.00046426,81293.0,81291.0,0.258328]
[1744297252760,0.258358,81283.0,81277.0,0.246069]
[1744297252978,0.258358,81283.0,81279.0,0.246064]
[1744297253252,0.246057,81284.0,81272.0,0.012304]
[1744297253253,0.307861,81281.0,81273.0,0.012304]
[1744297253479,0.307861,81281.0,81277.0,0.246072]
[1744297254029,0.246064,81280.0,81276.0,0.246074]
[1744297254248,0.246105,81267.0,81263.0,0.12750704]
[1744297254445,0.258413,81265.0,81263.0,0.12750704]
[1744297254696,0.012305,81264.0,81263.0,0.12750704]
[1744297254856,0.258413,81265.0,81263.0,0.12750704]
[1744297256207,0.258413,81266.0,81263.0,0.37362004]
[1744297256385,0.258413,81266.0,81262.0,0.246115]
[1744297256890,0.012305,81263.0,81254.0,0.012307]
[1744297257095,0.258422,81262.0,81257.0,0.246131]
[1744297257318,0.258422,81262.0,81255.0,0.258442]
[1744297257319,0.012306,81261.0,81256.0,0.012306]
[1744297257507,0.012306,81261.0,81253.0,0.258451]
[1744297257508,0.258436,81258.0,81253.0,0.258451]
[1744297257735,0.24613,81258.0,81254.0,0.012307]
[1744297257984,0.0469,81260.0,81258.0,0.246128]
[1744297258160,0.00941722,81261.0,81258.0,0.246128]
[1744297258384,0.012305,81264.0,81260.0,0.246121]
[1744297258591,0.246106,81266.0,81261.0,0.246118]
[1744297258798,0.304196,81271.0,81269.0,0.246095]
[1744297258799,0.0458,81271.0,81269.0,0.246095]
[1744297258982,0.00941352,81271.0,81269.0,0.012304]
[1744297259238,0.012302,81283.0,81271.0,0.246086]
[1744297259448,0.00012744,81280.0,81277.0,0.246069]
[1744297259657,0.00012744,81280.0,81278.0,0.258371]
[1744297259863,0.00012744,81280.0,81279.0,0.01476342]
[1744297260292,0.00012744,81280.0,81279.0,0.47531724]
[1744297260516,0.00012744,81280.0,81279.0,0.47285682]
[1744297262245,0.00012744,81280.0,81279.0,0.012303]
[1744297262457,0.00012744,81280.0,81276.0,0.246068]
[1744297262666,0.00012744,81280.0,81279.0,0.258369]
[1744297262875,0.00012744,81280.0,81279.0,0.37892282]
[1744297265002,0.00012744,81280.0,81279.0,0.258369]
[1744297266376,0.00012744,81280.0,81279.0,0.37892282]
[1744297268491,0.00012744,81280.0,81278.0,0.246067]
[1744297268694,0.00012744,81280.0,81279.0,0.258369]
[1744297268897,0.00012744,81280.0,81274.0,0.246081]
[1744297269101,0.246081,81274.0,81267.0,0.13981204]
[1744297269301,0.258381,81275.0,81267.0,0.13981204]
[1744297269505,0.246078,81275.0,81272.0,0.246086]
[1744297270291,0.246072,81277.0,81272.0,0.012304]
[1744297270508,0.246069,81278.0,81273.0,0.012304]
[1744297270726,0.04682744,81280.0,81279.0,0.258369]
[1744297270952,0.00012744,81280.0,81279.0,0.246066]
[1744297271196,0.00012744,81280.0,81273.0,0.012304]
[1744297271430,0.012303,81275.0,81269.0,0.246096]
[1744297271657,0.00012744,81280.0,81279.0,0.258369]
[1744297273042,0.00012744,81280.0,81279.0,0.37892282]
[1744297273987,0.00012744,81280.0,81279.0,0.258369]
[1744297276731,0.012304,81268.0,81264.0,0.12750704]
[1744297276961,0.012304,81272.0,81265.0,0.012305]
[1744297277166,0.246096,81269.0,81265.0,0.012305]
[1744297277370,0.258391,81272.0,81266.0,0.012305]
[1744297277557,0.246091,81271.0,81266.0,0.258409]
[1744297277779,0.246096,81270.0,81267.0,0.246102]
[1744297277935,0.246096,81269.0,81267.0,0.246101]
[1744297278135,0.246099,81268.0,81265.0,0.258413]
[1744297278340,0.258395,81271.0,81270.0,0.449294]
[1744297278541,0.39098645,81271.0,81270.0,0.449294]
[1744297278705,0.43678645,81271.0,81270.0,0.449294]
[1744297279115,0.43678645,81271.0,81262.0,0.163534]
[1744297279116,0.258419,81263.0,81262.0,0.163534]
[1744297279337,0.37897282,81263.0,81262.0,0.163534]
[1744297279745,0.39045022,81263.0,81262.0,0.163534]
[1744297279946,0.79199107,81263.0,81262.0,0.163534]
[1744297280352,0.81493396,81263.0,81262.0,0.116734]
[1744297280554,1.21493396,81263.0,81262.0,0.116734]
[1744297281844,1.20039311,81263.0,81262.0,0.116734]
[1744297282083,1.21493396,81263.0,81262.0,0.116734]
[1744297282270,1.19199107,81263.0,81262.0,0.116734]
[1744297282511,1.37127107,81263.0,81262.0,0.116734]
[1744297283121,0.25847,81247.0,81246.0,0.0001683]
[1744297283314,0.37902382,81247.0,81246.0,0.0001683]
[1744297283506,0.37842382,81247.0,81246.0,0.0001683]
[1744297283709,0.77842382,81247.0,81246.0,0.0001683]
[1744297284254,0.40931476,81247.0,81246.0,0.0001683]
[1744297284457,0.02162276,81247.0,81246.0,0.0001683]
[1744297284667,0.258439,81257.0,81246.0,0.2586383]
[1744297284879,0.17928,81250.0,81247.0,0.246162]
[1744297285053,0.17928,81250.0,81248.0,0.246158]
[1744297285302,0.12055382,81260.0,81248.0,0.012307]
[1744297285516,0.22628,81263.0,81257.0,0.246132]
[1744297285722,0.238585,81263.0,81256.0,0.258439]
[1744297285903,0.246141,81254.0,81249.0,0.246155]
[1744297286123,0.246141,81254.0,81248.0,0.00042485]
[1744297286124,0.246145,81253.0,81248.0,0.24658185]
[1744297286343,0.246141,81255.0,81249.0,0.246156]
[1744297286610,0.012306,81258.0,81250.0,0.246153]
[1744297286812,0.36668582,81257.0,81252.0,0.246147]
[1744297287025,0.20066155,81263.0,81255.0,0.012306]
[1744297287228,0.25843,81260.0,81253.0,0.012307]
[1744297287408,0.246133,81257.0,81252.0,0.012307]
[1744297287555,0.246128,81259.0,81252.0,0.012307]
[1744297287767,0.24613,81258.0,81253.0,0.012307]
[1744297287972,0.246133,81257.0,81252.0,0.012307]
[1744297288170,0.258436,81258.0,81252.0,0.258452]
[1744297288364,0.258436,81258.0,81253.0,0.246142]